[Event "Titled Tuesday Blitz January 03 Early 2023"]
[White "ArchibaldCerveza29"]
[Black "Balint, Vilmos"]
[BlackFideId "718050"]
[WhiteElo "2510"]
[BlackElo "2169"]
[Result "1-0"]
[Round "04"]
[TimeControl "180+2"]
[Date "2023.01.03"]
[WhiteClock "0:00:02"]
[BlackClock "0:00:33"]

1. d4 {[%clk 0:03:00]}  Nf6 {[%clk 0:02:57]} 2. Nf3 {[%clk 0:02:59]}  e6 {[%clk 0:02:57]} 3. g3 {[%clk 0:02:59]}  b6 {[%clk 0:02:57]} 4. Bg2 {[%clk 0:02:59]}  Bb7 {[%clk 0:02:57]} 5. O-O {[%clk 0:03:00]}  Be7 {[%clk 0:02:58]} 6. b3 {[%clk 0:02:57]}  O-O {[%clk 0:02:58]} 7. Bb2 {[%clk 0:02:58]}  a5 {[%clk 0:02:57]} 8. Nbd2 {[%clk 0:02:58]}  a4 {[%clk 0:02:57]} 9. Re1 {[%clk 0:02:55]}  Na6 {[%clk 0:02:54]} 10. e4 {[%clk 0:02:51]}  d6 {[%clk 0:02:54]} 11. c4 {[%clk 0:02:44]}  Nb4 {[%clk 0:02:51]} 12. Bc3 {[%clk 0:02:29]}  d5 {[%clk 0:02:38]} 13. e5 {[%clk 0:02:16]}  Nd7 {[%clk 0:02:32]} 14. a3 {[%clk 0:02:02]}  Na6 {[%clk 0:02:19]} 15. bxa4 {[%clk 0:01:52]}  dxc4 {[%clk 0:02:19]} 16. Nxc4 {[%clk 0:01:53]}  c5 {[%clk 0:02:17]} 17. Rb1 {[%clk 0:01:47]}  cxd4 {[%clk 0:02:16]} 18. Bxd4 {[%clk 0:01:41]}  Nac5 {[%clk 0:02:15]} 19. a5 {[%clk 0:01:31]}  bxa5 {[%clk 0:02:11]} 20. Qc2 {[%clk 0:01:11]}  Bd5 {[%clk 0:02:04]} 21. Nd6 {[%clk 0:01:05]}  Qc7 {[%clk 0:01:36]} 22. Rec1 {[%clk 0:00:56]}  Qc6 {[%clk 0:01:25]} 23. Ne1 {[%clk 0:00:15]}  Bxg2 {[%clk 0:01:17]} 24. Nxg2 {[%clk 0:00:16]}  Bxd6 {[%clk 0:01:11]} 25. exd6 {[%clk 0:00:17]}  Rfc8 {[%clk 0:01:10]} 26. Rd1 {[%clk 0:00:09]}  f6 {[%clk 0:01:06]} 27. Qe2 {[%clk 0:00:07]}  Rab8 {[%clk 0:00:56]} 28. Rbc1 {[%clk 0:00:07]}  Qa6 {[%clk 0:00:56]} 29. Qg4 {[%clk 0:00:05]}  Kf7 {[%clk 0:00:46]} 30. Qh5+ {[%clk 0:00:04]}  Kg8 {[%clk 0:00:46]} 31. Bxc5 {[%clk 0:00:04]}  Rxc5 {[%clk 0:00:44]} 32. Rxc5 {[%clk 0:00:05]}  Nxc5 {[%clk 0:00:43]} 33. Qxc5 {[%clk 0:00:06]}  Qe2 {[%clk 0:00:43]} 34. Re1 {[%clk 0:00:05]}  Qd2 {[%clk 0:00:43]} 35. Qc7 {[%clk 0:00:05]}  Rb2 {[%clk 0:00:41]} 36. Qd8+ {[%clk 0:00:03]}  Kf7 {[%clk 0:00:42]} 37. Qd7+ {[%clk 0:00:04]}  Kg6 {[%clk 0:00:42]} 38. Qe8+ {[%clk 0:00:04]}  Kh6 {[%clk 0:00:43]} 39. Rf1 {[%clk 0:00:02]}  Qxd6 {[%clk 0:00:42]} 40. h4 {[%clk 0:00:02]}  e5 {[%clk 0:00:39]} 41. Ne3 {[%clk 0:00:03]}  Qd4 {[%clk 0:00:33]} 42. Nf5# {[%clk 0:00:02]} 1-0


[Site "https://www.chess.com"]

[Event "Titled Tuesday Blitz January 03 Early 2023"]
[White "Mica, Marek"]
[Black "Prudnykova, Olga"]
[WhiteFideId "382884"]
[BlackFideId "14121093"]
[WhiteElo "2256"]
[BlackElo "2268"]
[Result "1-0"]
[Round "04"]
[TimeControl "180+2"]
[Date "2023.01.03"]
[WhiteClock "0:00:43"]
[BlackClock "0:00:02"]

1. Nf3 {[%clk 0:02:57]}  Nf6 {[%clk 0:02:59]} 2. d4 {[%clk 0:02:56]}  g6 {[%clk 0:02:59]} 3. c4 {[%clk 0:02:57]}  Bg7 {[%clk 0:03:00]} 4. g3 {[%clk 0:02:57]}  d5 {[%clk 0:02:58]} 5. Bg2 {[%clk 0:02:56]}  O-O {[%clk 0:02:55]} 6. O-O {[%clk 0:02:56]}  dxc4 {[%clk 0:02:55]} 7. Na3 {[%clk 0:02:54]}  c5 {[%clk 0:02:55]} 8. dxc5 {[%clk 0:02:49]}  Qc7 {[%clk 0:02:52]} 9. Qc2 {[%clk 0:02:36]}  Qxc5 {[%clk 0:02:45]} 10. Be3 {[%clk 0:02:37]}  Qh5 {[%clk 0:02:37]} 11. Nxc4 {[%clk 0:02:27]}  Nc6 {[%clk 0:02:33]} 12. Rac1 {[%clk 0:02:23]}  Bh3 {[%clk 0:02:31]} 13. Rfd1 {[%clk 0:02:18]}  Ng4 {[%clk 0:02:20]} 14. Qb3 {[%clk 0:02:08]}  e5 {[%clk 0:01:48]} 15. Qxb7 {[%clk 0:01:55]}  Bxg2 {[%clk 0:01:24]} 16. Kxg2 {[%clk 0:01:50]}  e4 {[%clk 0:01:25]} 17. Qxc6 {[%clk 0:01:47]}  exf3+ {[%clk 0:01:24]} 18. Qxf3 {[%clk 0:01:45]}  Qxh2+ {[%clk 0:01:16]} 19. Kf1 {[%clk 0:01:45]}  Qh3+ {[%clk 0:01:12]} 20. Qg2 {[%clk 0:01:45]}  Nxe3+ {[%clk 0:00:56]} 21. Nxe3 {[%clk 0:01:41]}  Qxg2+ {[%clk 0:00:53]} 22. Kxg2 {[%clk 0:01:41]}  Bxb2 {[%clk 0:00:53]} 23. Rc7 {[%clk 0:01:40]}  Be5 {[%clk 0:00:41]} 24. Re7 {[%clk 0:01:34]}  Rfe8 {[%clk 0:00:37]} 25. Rb7 {[%clk 0:01:26]}  a5 {[%clk 0:00:23]} 26. Rdd7 {[%clk 0:01:26]}  Rf8 {[%clk 0:00:23]} 27. Nc4 {[%clk 0:01:24]}  Bf6 {[%clk 0:00:22]} 28. e4 {[%clk 0:01:22]}  a4 {[%clk 0:00:20]} 29. e5 {[%clk 0:01:19]}  Bg7 {[%clk 0:00:19]} 30. f4 {[%clk 0:01:19]}  Rac8 {[%clk 0:00:19]} 31. Rdc7 {[%clk 0:01:11]}  Rxc7 {[%clk 0:00:17]} 32. Rxc7 {[%clk 0:01:12]}  Rb8 {[%clk 0:00:17]} 33. a3 {[%clk 0:01:09]}  Bf8 {[%clk 0:00:17]} 34. Ra7 {[%clk 0:01:07]}  Rc8 {[%clk 0:00:16]} 35. Nd6 {[%clk 0:01:07]}  Bxd6 {[%clk 0:00:15]} 36. exd6 {[%clk 0:01:08]}  Rd8 {[%clk 0:00:16]} 37. d7 {[%clk 0:01:07]}  Kf8 {[%clk 0:00:16]} 38. Kf3 {[%clk 0:01:07]}  Ke7 {[%clk 0:00:16]} 39. Ke4 {[%clk 0:01:06]}  Rxd7 {[%clk 0:00:17]} 40. Rxa4 {[%clk 0:01:06]}  Rb7 {[%clk 0:00:16]} 41. Rb4 {[%clk 0:01:02]}  Rc7 {[%clk 0:00:15]} 42. a4 {[%clk 0:01:00]}  f5+ {[%clk 0:00:15]} 43. Kf3 {[%clk 0:00:59]}  Rc3+ {[%clk 0:00:14]} 44. Kg2 {[%clk 0:00:59]}  Ra3 {[%clk 0:00:14]} 45. Kh3 {[%clk 0:01:00]}  h5 {[%clk 0:00:14]} 46. Kh4 {[%clk 0:00:59]}  Kf6 {[%clk 0:00:13]} 47. Rc4 {[%clk 0:00:56]}  Ra1 {[%clk 0:00:11]} 48. Rc6+ {[%clk 0:00:56]}  Kg7 {[%clk 0:00:11]} 49. Kg5 {[%clk 0:00:53]}  Rxa4 {[%clk 0:00:11]} 50. Rxg6+ {[%clk 0:00:53]}  Kf7 {[%clk 0:00:12]} 51. Rf6+ {[%clk 0:00:53]}  Kg7 {[%clk 0:00:11]} 52. Rxf5 {[%clk 0:00:52]}  Ra3 {[%clk 0:00:10]} 53. Kh4 {[%clk 0:00:52]}  Ra1 {[%clk 0:00:10]} 54. Rxh5 {[%clk 0:00:51]}  Kf6 {[%clk 0:00:10]} 55. Kg4 {[%clk 0:00:50]}  Rg1 {[%clk 0:00:09]} 56. Rh6+ {[%clk 0:00:50]}  Kg7 {[%clk 0:00:09]} 57. Rb6 {[%clk 0:00:50]}  Rg2 {[%clk 0:00:09]} 58. Kh4 {[%clk 0:00:51]}  Rh2+ {[%clk 0:00:10]} 59. Kg5 {[%clk 0:00:51]}  Rg2 {[%clk 0:00:10]} 60. g4 {[%clk 0:00:51]}  Rc2 {[%clk 0:00:09]} 61. f5 {[%clk 0:00:51]}  Rc4 {[%clk 0:00:09]} 62. Rb7+ {[%clk 0:00:51]}  Kf8 {[%clk 0:00:09]} 63. Kh5 {[%clk 0:00:50]}  Rf4 {[%clk 0:00:06]} 64. Kg5 {[%clk 0:00:45]}  Rc4 {[%clk 0:00:05]} 65. f6 {[%clk 0:00:45]}  Re4 {[%clk 0:00:03]} 66. Kf5 {[%clk 0:00:44]}  Re1 {[%clk 0:00:04]} 67. g5 {[%clk 0:00:44]}  Rf1+ {[%clk 0:00:03]} 68. Kg6 {[%clk 0:00:44]}  Ke8 {[%clk 0:00:02]} 69. Kg7 {[%clk 0:00:43]} 1-0


[Site "https://www.chess.com"]

[Event "Titled Tuesday Blitz January 03 Early 2023"]
[White "Tran, Thanh Tu"]
[Black "Zia, Tahsin Tajwar"]
[WhiteFideId "12401404"]
[BlackFideId "10211888"]
[WhiteElo "2412"]
[BlackElo "2315"]
[Result "1-0"]
[Round "04"]
[TimeControl "180+2"]
[Date "2023.01.03"]
[WhiteClock "0:00:04"]
[BlackClock "0:00:02"]

1. Nf3 {[%clk 0:03:00]}  Nf6 {[%clk 0:02:59]} 2. d4 {[%clk 0:03:01]}  g6 {[%clk 0:02:59]} 3. Bf4 {[%clk 0:03:01]}  Bg7 {[%clk 0:02:59]} 4. e3 {[%clk 0:03:01]}  O-O {[%clk 0:02:52]} 5. h3 {[%clk 0:03:02]}  c5 {[%clk 0:02:41]} 6. c3 {[%clk 0:03:01]}  b6 {[%clk 0:02:36]} 7. a4 {[%clk 0:03:00]}  Bb7 {[%clk 0:02:25]} 8. a5 {[%clk 0:03:00]}  Qc8 {[%clk 0:01:54]} 9. Nbd2 {[%clk 0:02:53]}  d6 {[%clk 0:01:45]} 10. Be2 {[%clk 0:02:51]}  Ne4 {[%clk 0:01:35]} 11. O-O {[%clk 0:02:43]}  Nd7 {[%clk 0:01:24]} 12. Nxe4 {[%clk 0:02:17]}  Bxe4 {[%clk 0:01:14]} 13. Ng5 {[%clk 0:02:18]}  Nf6 {[%clk 0:01:02]} 14. Nxe4 {[%clk 0:01:59]}  Nxe4 {[%clk 0:01:03]} 15. Bf3 {[%clk 0:02:00]}  d5 {[%clk 0:00:56]} 16. dxc5 {[%clk 0:01:50]}  Qxc5 {[%clk 0:00:57]} 17. axb6 {[%clk 0:01:38]}  axb6 {[%clk 0:00:54]} 18. Qc2 {[%clk 0:01:33]}  Nf6 {[%clk 0:00:45]} 19. Be5 {[%clk 0:01:28]}  e6 {[%clk 0:00:44]} 20. Bd4 {[%clk 0:01:24]}  Qc7 {[%clk 0:00:39]} 21. Qb3 {[%clk 0:01:24]}  Nd7 {[%clk 0:00:38]} 22. Bxg7 {[%clk 0:01:13]}  Kxg7 {[%clk 0:00:39]} 23. Qb4 {[%clk 0:01:08]}  Qc5 {[%clk 0:00:37]} 24. Qf4 {[%clk 0:01:01]}  e5 {[%clk 0:00:27]} 25. Qg4 {[%clk 0:00:56]}  Nf6 {[%clk 0:00:27]} 26. Qh4 {[%clk 0:00:55]}  e4 {[%clk 0:00:24]} 27. Be2 {[%clk 0:00:55]}  h6 {[%clk 0:00:22]} 28. Qf4 {[%clk 0:00:52]}  Qe7 {[%clk 0:00:19]} 29. Bb5 {[%clk 0:00:48]}  Rfd8 {[%clk 0:00:12]} 30. Bc6 {[%clk 0:00:46]}  Rxa1 {[%clk 0:00:12]} 31. Rxa1 {[%clk 0:00:47]}  Qd6 {[%clk 0:00:13]} 32. Qxd6 {[%clk 0:00:42]}  Rxd6 {[%clk 0:00:14]} 33. Bb5 {[%clk 0:00:43]}  Nd7 {[%clk 0:00:14]} 34. Ra7 {[%clk 0:00:27]}  Ne5 {[%clk 0:00:09]} 35. Kf1 {[%clk 0:00:24]}  Kf6 {[%clk 0:00:08]} 36. Ke2 {[%clk 0:00:24]}  Ke6 {[%clk 0:00:09]} 37. f4 {[%clk 0:00:22]}  Nd7 {[%clk 0:00:06]} 38. g4 {[%clk 0:00:18]}  f5 {[%clk 0:00:06]} 39. b4 {[%clk 0:00:15]}  fxg4 {[%clk 0:00:05]} 40. hxg4 {[%clk 0:00:15]}  h5 {[%clk 0:00:06]} 41. g5 {[%clk 0:00:11]}  h4 {[%clk 0:00:03]} 42. Kf2 {[%clk 0:00:11]}  Ke7 {[%clk 0:00:03]} 43. Kg2 {[%clk 0:00:11]}  Kd8 {[%clk 0:00:03]} 44. Kh3 {[%clk 0:00:11]}  Nf8 {[%clk 0:00:03]} 45. Kxh4 {[%clk 0:00:10]}  Ne6 {[%clk 0:00:03]} 46. Kg4 {[%clk 0:00:10]}  Nc7 {[%clk 0:00:02]} 47. Be2 {[%clk 0:00:09]}  Kc8 {[%clk 0:00:03]} 48. f5 {[%clk 0:00:07]}  gxf5+ {[%clk 0:00:04]} 49. Kxf5 {[%clk 0:00:08]}  Kb8 {[%clk 0:00:04]} 50. Ra1 {[%clk 0:00:08]}  Rd8 {[%clk 0:00:05]} 51. g6 {[%clk 0:00:08]}  Rf8+ {[%clk 0:00:06]} 52. Ke5 {[%clk 0:00:08]}  Rg8 {[%clk 0:00:05]} 53. Rg1 {[%clk 0:00:07]}  Kc8 {[%clk 0:00:05]} 54. Bg4+ {[%clk 0:00:07]}  Kd8 {[%clk 0:00:06]} 55. Be6 {[%clk 0:00:07]}  Rg7 {[%clk 0:00:05]} 56. Kf6 {[%clk 0:00:07]}  Nxe6 {[%clk 0:00:04]} 57. Kxe6 {[%clk 0:00:08]}  Ke8 {[%clk 0:00:05]} 58. Kf6 {[%clk 0:00:08]}  Kf8 {[%clk 0:00:05]} 59. Rg5 {[%clk 0:00:09]}  Rd7 {[%clk 0:00:05]} 60. g7+ {[%clk 0:00:08]}  Kg8 {[%clk 0:00:05]} 61. Ke6 {[%clk 0:00:08]}  Rc7 {[%clk 0:00:04]} 62. Kxd5 {[%clk 0:00:07]}  Rxc3 {[%clk 0:00:05]} 63. Kxe4 {[%clk 0:00:06]}  Rc4+ {[%clk 0:00:05]} 64. Kd5 {[%clk 0:00:06]}  Rxb4 {[%clk 0:00:06]} 65. Rg3 {[%clk 0:00:04]}  Rb5+ {[%clk 0:00:05]} 66. Kc6 {[%clk 0:00:03]}  Rb1 {[%clk 0:00:04]} 67. e4 {[%clk 0:00:04]}  b5 {[%clk 0:00:04]} 68. e5 {[%clk 0:00:04]}  b4 {[%clk 0:00:05]} 69. e6 {[%clk 0:00:04]}  Re1 {[%clk 0:00:06]} 70. Kd7 {[%clk 0:00:04]}  b3 {[%clk 0:00:05]} 71. Rxb3 {[%clk 0:00:03]}  Kxg7 {[%clk 0:00:05]} 72. Rg3+ {[%clk 0:00:04]}  Kf6 {[%clk 0:00:05]} 73. Rf3+ {[%clk 0:00:04]}  Kg7 {[%clk 0:00:06]} 74. e7 {[%clk 0:00:05]}  Rd1+ {[%clk 0:00:06]} 75. Ke6 {[%clk 0:00:05]}  Re1+ {[%clk 0:00:06]} 76. Kd7 {[%clk 0:00:04]}  Rd1+ {[%clk 0:00:06]} 77. Ke8 {[%clk 0:00:04]}  Rd2 {[%clk 0:00:07]} 78. Rg3+ {[%clk 0:00:04]}  Kf6 {[%clk 0:00:07]} 79. Kf8 {[%clk 0:00:04]}  Rh2 {[%clk 0:00:04]} 80. Rf3+ {[%clk 0:00:04]}  Ke5 {[%clk 0:00:02]} 81. e8=Q+ {[%clk 0:00:04]} 1-0


[Site "https://www.chess.com"]

[Event "Titled Tuesday Blitz January 03 Early 2023"]
[White "Andreev, Eduard"]
[Black "Viskelis, Darius"]
[WhiteFideId "14103400"]
[BlackFideId "12800830"]
[WhiteElo "2413"]
[BlackElo "2166"]
[Result "1-0"]
[Round "04"]
[TimeControl "180+2"]
[Date "2023.01.03"]
[WhiteClock "0:01:09"]
[BlackClock "0:00:07"]

1. e4 {[%clk 0:03:00]}  c5 {[%clk 0:02:58]} 2. Nf3 {[%clk 0:03:00]}  g6 {[%clk 0:02:58]} 3. d4 {[%clk 0:03:00]}  cxd4 {[%clk 0:02:59]} 4. Nxd4 {[%clk 0:03:01]}  Bg7 {[%clk 0:02:59]} 5. Nc3 {[%clk 0:03:01]}  Nc6 {[%clk 0:02:59]} 6. Be3 {[%clk 0:03:01]}  Nf6 {[%clk 0:02:58]} 7. f3 {[%clk 0:03:01]}  O-O {[%clk 0:02:58]} 8. Bc4 {[%clk 0:03:01]}  Qb6 {[%clk 0:02:52]} 9. Bb3 {[%clk 0:03:00]}  Ng4 {[%clk 0:02:48]} 10. fxg4 {[%clk 0:02:58]}  Bxd4 {[%clk 0:02:48]} 11. Bxd4 {[%clk 0:02:57]}  Qxd4 {[%clk 0:02:47]} 12. Qxd4 {[%clk 0:02:57]}  Nxd4 {[%clk 0:02:47]} 13. O-O-O {[%clk 0:02:58]}  Nxb3+ {[%clk 0:02:45]} 14. axb3 {[%clk 0:02:58]}  d6 {[%clk 0:02:45]} 15. g5 {[%clk 0:02:54]}  Be6 {[%clk 0:02:39]} 16. Nd5 {[%clk 0:02:53]}  Bxd5 {[%clk 0:02:39]} 17. Rxd5 {[%clk 0:02:54]}  Rfc8 {[%clk 0:02:32]} 18. e5 {[%clk 0:02:48]}  Rc5 {[%clk 0:02:30]} 19. Rxc5 {[%clk 0:02:28]}  dxc5 {[%clk 0:02:27]} 20. Rd1 {[%clk 0:02:28]}  Kf8 {[%clk 0:01:19]} 21. Rd7 {[%clk 0:02:26]}  b6 {[%clk 0:00:54]} 22. Rb7 {[%clk 0:02:00]}  Ke8 {[%clk 0:00:50]} 23. c3 {[%clk 0:01:51]}  Rd8 {[%clk 0:00:30]} 24. Rxa7 {[%clk 0:01:45]}  Rd5 {[%clk 0:00:30]} 25. e6 {[%clk 0:01:27]}  fxe6 {[%clk 0:00:28]} 26. Rb7 {[%clk 0:01:26]}  Rxg5 {[%clk 0:00:24]} 27. g3 {[%clk 0:01:26]}  Rh5 {[%clk 0:00:22]} 28. h4 {[%clk 0:01:26]}  g5 {[%clk 0:00:23]} 29. hxg5 {[%clk 0:01:25]}  Rxg5 {[%clk 0:00:23]} 30. Rxb6 {[%clk 0:01:26]}  Kd7 {[%clk 0:00:21]} 31. Rb7+ {[%clk 0:01:24]}  Kd6 {[%clk 0:00:21]} 32. b4 {[%clk 0:01:20]}  cxb4 {[%clk 0:00:19]} 33. Rxb4 {[%clk 0:01:20]}  Rxg3 {[%clk 0:00:19]} 34. Rh4 {[%clk 0:01:21]}  Rg7 {[%clk 0:00:16]} 35. b4 {[%clk 0:01:20]}  e5 {[%clk 0:00:16]} 36. Kc2 {[%clk 0:01:20]}  Kd5 {[%clk 0:00:16]} 37. c4+ {[%clk 0:01:17]}  Kd6 {[%clk 0:00:15]} 38. Kb3 {[%clk 0:01:17]}  e6 {[%clk 0:00:14]} 39. Ka4 {[%clk 0:01:17]}  Rf7 {[%clk 0:00:13]} 40. Kb5 {[%clk 0:01:15]}  Rb7+ {[%clk 0:00:12]} 41. Ka5 {[%clk 0:01:16]}  Ra7+ {[%clk 0:00:11]} 42. Kb6 {[%clk 0:01:16]}  Ra4 {[%clk 0:00:10]} 43. b5 {[%clk 0:01:08]}  h5 {[%clk 0:00:06]} 44. c5+ {[%clk 0:01:08]}  Kd5 {[%clk 0:00:07]} 45. Rxa4 {[%clk 0:01:09]} 1-0


[Site "https://www.chess.com"]

[Event "Titled Tuesday Blitz January 03 Early 2023"]
[White "Quinones Garcia, Santiago"]
[Black "Koridze, Lile"]
[WhiteFideId "4408497"]
[BlackFideId "13612514"]
[WhiteElo "2248"]
[BlackElo "2191"]
[Result "0-1"]
[Round "04"]
[TimeControl "180+2"]
[Date "2023.01.03"]
[WhiteClock "0:00:59"]
[BlackClock "0:00:46"]

1. d4 {[%clk 0:02:52]}  Nf6 {[%clk 0:02:58]} 2. c4 {[%clk 0:02:53]}  e6 {[%clk 0:02:57]} 3. Nc3 {[%clk 0:02:53]}  Bb4 {[%clk 0:02:56]} 4. Qc2 {[%clk 0:02:54]}  O-O {[%clk 0:02:56]} 5. a3 {[%clk 0:02:54]}  Bxc3+ {[%clk 0:02:56]} 6. Qxc3 {[%clk 0:02:54]}  b6 {[%clk 0:02:57]} 7. Nf3 {[%clk 0:02:54]}  Bb7 {[%clk 0:02:57]} 8. e3 {[%clk 0:02:55]}  d5 {[%clk 0:02:58]} 9. b4 {[%clk 0:02:54]}  Nbd7 {[%clk 0:02:57]} 10. Bd3 {[%clk 0:02:51]}  c5 {[%clk 0:02:57]} 11. dxc5 {[%clk 0:02:46]}  bxc5 {[%clk 0:02:58]} 12. b5 {[%clk 0:02:43]}  d4 {[%clk 0:02:26]} 13. exd4 {[%clk 0:02:40]}  cxd4 {[%clk 0:02:26]} 14. Qxd4 {[%clk 0:02:27]}  Bxf3 {[%clk 0:02:25]} 15. gxf3 {[%clk 0:02:27]}  Ne5 {[%clk 0:02:20]} 16. Qxd8 {[%clk 0:02:19]}  Nxf3+ {[%clk 0:02:20]} 17. Ke2 {[%clk 0:02:17]}  Raxd8 {[%clk 0:02:19]} 18. Bxh7+ {[%clk 0:02:10]}  Kxh7 {[%clk 0:02:16]} 19. Kxf3 {[%clk 0:02:10]}  Rc8 {[%clk 0:01:58]} 20. Be3 {[%clk 0:02:08]}  Rxc4 {[%clk 0:01:50]} 21. Bxa7 {[%clk 0:02:08]}  Nd5 {[%clk 0:01:44]} 22. a4 {[%clk 0:01:59]}  Rfc8 {[%clk 0:01:40]} 23. a5 {[%clk 0:01:58]}  Rb4 {[%clk 0:01:40]} 24. Rhb1 {[%clk 0:01:53]}  Rc3+ {[%clk 0:01:38]} 25. Kg2 {[%clk 0:01:49]}  Rg4+ {[%clk 0:01:34]} 26. Kf1 {[%clk 0:01:43]}  Rh3 {[%clk 0:01:25]} 27. b6 {[%clk 0:01:33]}  Rxh2 {[%clk 0:01:22]} 28. b7 {[%clk 0:01:29]}  Nc3 {[%clk 0:01:22]} 29. Ke1 {[%clk 0:01:25]}  Rh1+ {[%clk 0:01:01]} 30. Kd2 {[%clk 0:01:25]}  Nxb1+ {[%clk 0:01:01]} 31. Kd3 {[%clk 0:01:23]}  Rb4 {[%clk 0:00:55]} 32. b8=Q {[%clk 0:01:21]}  Rxb8 {[%clk 0:00:55]} 33. Bxb8 {[%clk 0:01:22]}  Rh3+ {[%clk 0:00:54]} 34. Kc2 {[%clk 0:01:11]}  Na3+ {[%clk 0:00:54]} 35. Kd1 {[%clk 0:01:07]}  Rh1+ {[%clk 0:00:49]} 36. Ke2 {[%clk 0:00:59]}  Rxa1 {[%clk 0:00:47]} 37. a6 {[%clk 0:00:59]}  Nb5 {[%clk 0:00:47]} 38. a7 {[%clk 0:00:59]}  Nxa7 {[%clk 0:00:46]} 0-1


[Site "https://www.chess.com"]

[Event "Titled Tuesday Blitz January 03 Early 2023"]
[White "Bommini, Mounika Akshaya"]
[Black "Kopczynski, Michal"]
[WhiteFideId "25019872"]
[BlackFideId "1124200"]
[WhiteElo "2118"]
[BlackElo "2225"]
[Result "1-0"]
[Round "04"]
[TimeControl "180+2"]
[Date "2023.01.03"]
[WhiteClock "0:00:05"]
[BlackClock "0:00:11"]

1. d4 {[%clk 0:02:46]}  Nf6 {[%clk 0:02:58]} 2. c4 {[%clk 0:02:37]}  g6 {[%clk 0:02:59]} 3. Nc3 {[%clk 0:02:33]}  Bg7 {[%clk 0:02:59]} 4. e4 {[%clk 0:02:33]}  d6 {[%clk 0:03:00]} 5. f4 {[%clk 0:02:31]}  O-O {[%clk 0:03:00]} 6. Nf3 {[%clk 0:02:32]}  c5 {[%clk 0:03:00]} 7. d5 {[%clk 0:02:32]}  e6 {[%clk 0:03:01]} 8. dxe6 {[%clk 0:02:32]}  fxe6 {[%clk 0:03:00]} 9. Bd3 {[%clk 0:02:32]}  Nc6 {[%clk 0:02:57]} 10. O-O {[%clk 0:02:31]}  Kh8 {[%clk 0:02:52]} 11. Ng5 {[%clk 0:02:21]}  h6 {[%clk 0:02:51]} 12. Nh3 {[%clk 0:02:12]}  e5 {[%clk 0:02:50]} 13. f5 {[%clk 0:02:10]}  g5 {[%clk 0:02:48]} 14. Nxg5 {[%clk 0:02:09]}  hxg5 {[%clk 0:02:47]} 15. Bxg5 {[%clk 0:02:10]}  Qe8 {[%clk 0:02:44]} 16. Rf3 {[%clk 0:02:08]}  Kg8 {[%clk 0:02:35]} 17. Nd5 {[%clk 0:02:00]}  Nxd5 {[%clk 0:02:25]} 18. cxd5 {[%clk 0:01:58]}  Nd4 {[%clk 0:02:25]} 19. Rg3 {[%clk 0:01:50]}  Rf7 {[%clk 0:02:14]} 20. f6 {[%clk 0:01:48]}  c4 {[%clk 0:01:28]} 21. Bxc4 {[%clk 0:01:40]}  Bd7 {[%clk 0:01:23]} 22. fxg7 {[%clk 0:01:37]}  Rxg7 {[%clk 0:01:24]} 23. Qd3 {[%clk 0:01:13]}  Rc8 {[%clk 0:01:21]} 24. Bh6 {[%clk 0:00:51]}  Rg6 {[%clk 0:01:13]} 25. Rf1 {[%clk 0:00:50]}  Bg4 {[%clk 0:00:33]} 26. Rxg4 {[%clk 0:00:17]}  Rxg4 {[%clk 0:00:31]} 27. Rf8+ {[%clk 0:00:10]}  Qxf8 {[%clk 0:00:30]} 28. Bxf8 {[%clk 0:00:11]}  Rxf8 {[%clk 0:00:30]} 29. h3 {[%clk 0:00:12]}  Rg5 {[%clk 0:00:25]} 30. Qe3 {[%clk 0:00:11]}  Rf4 {[%clk 0:00:24]} 31. Kh2 {[%clk 0:00:07]}  b5 {[%clk 0:00:21]} 32. Be2 {[%clk 0:00:07]}  Rg6 {[%clk 0:00:19]} 33. Bg4 {[%clk 0:00:07]}  Rgf6 {[%clk 0:00:18]} 34. Qg3 {[%clk 0:00:06]}  Kf7 {[%clk 0:00:17]} 35. Qa3 {[%clk 0:00:06]}  Kg6 {[%clk 0:00:10]} 36. Qxa7 {[%clk 0:00:06]}  Rf2 {[%clk 0:00:10]} 37. Qb8 {[%clk 0:00:05]}  Rxb2 {[%clk 0:00:10]} 38. Qg8+ {[%clk 0:00:06]}  Kh6 {[%clk 0:00:11]} 39. Qh8+ {[%clk 0:00:05]}  Kg6 {[%clk 0:00:11]} 40. Bh5+ {[%clk 0:00:06]}  Kg5 {[%clk 0:00:11]} 41. Kg3 {[%clk 0:00:02]}  Ne2+ {[%clk 0:00:09]} 42. Bxe2 {[%clk 0:00:02]}  Rxe2 {[%clk 0:00:10]} 43. h4+ {[%clk 0:00:02]}  Kg6 {[%clk 0:00:10]} 44. h5+ {[%clk 0:00:03]}  Kf7 {[%clk 0:00:11]} 45. Qh7+ {[%clk 0:00:03]}  Kf8 {[%clk 0:00:11]} 46. Qh8+ {[%clk 0:00:03]}  Kf7 {[%clk 0:00:11]} 47. h6 {[%clk 0:00:03]}  Re3+ {[%clk 0:00:11]} 48. Kh2 {[%clk 0:00:03]}  Rxe4 {[%clk 0:00:12]} 49. Qg7+ {[%clk 0:00:03]}  Ke8 {[%clk 0:00:11]} 50. Qxf6 {[%clk 0:00:04]}  Rf4 {[%clk 0:00:12]} 51. Qe6+ {[%clk 0:00:04]}  Kf8 {[%clk 0:00:12]} 52. h7 {[%clk 0:00:04]}  Kg7 {[%clk 0:00:12]} 53. Qe7+ {[%clk 0:00:04]}  Kh8 {[%clk 0:00:12]} 54. Qxd6 {[%clk 0:00:04]}  Kxh7 {[%clk 0:00:11]} 55. Qe7+ {[%clk 0:00:05]}  Kg6 {[%clk 0:00:11]} 56. Qe6+ {[%clk 0:00:04]}  Rf6 {[%clk 0:00:11]} 57. Qxe5 {[%clk 0:00:05]}  Kf7 {[%clk 0:00:12]} 58. Qc7+ {[%clk 0:00:05]}  Ke8 {[%clk 0:00:12]} 59. d6 {[%clk 0:00:05]}  Rh6+ {[%clk 0:00:12]} 60. Kg1 {[%clk 0:00:05]}  Kf8 {[%clk 0:00:12]} 61. d7 {[%clk 0:00:05]}  Ke7 {[%clk 0:00:11]} 62. d8=Q+ {[%clk 0:00:05]} 1-0


[Site "https://www.chess.com"]